[Event "57th Biel Festival ATO 2024"]
[Site "Biel"]
[Date "2024.07.25"]
[Round "9.5"]
[White "Oestmann, Lukas"]
[Black "Andrzejewska, Anna"]
[Result "1-0"]
[ECO "C78"]
[WhiteElo "1926"]
[BlackElo "1933"]
[Annotator "RC"]
[PlyCount "145"]
[EventDate "2024.07.03"]
[EventType "swiss"]
[EventCountry "SUI"]
[SourceTitle "playchess.com"]
[Source "ChessBase"]
[SourceQuality "1"]
[TimeControl "40/5400+30:1800+30"]

1. e4 {[%emt 0:00:04]} e5 {[%emt 0:00:03]} 2. Nf3 {[%emt 0:00:05]} Nc6 {[%emt 0:00:05]} 3. Bb5 {[%emt 0:00:03]} a6 {[%emt 0:00:11]} 4. Ba4 {[%emt 0:00:04]} Nf6 {[%emt 0:00:08]} 5. O-O {[%emt 0:00:07]} b5 {[%emt 0:00:20]} 6. Bb3 {[%emt 0:00:04]} Bc5 {[%emt 0:00:24]} 7. c3 {[%emt 0:00:14]} d6 {[%emt 0:00:30]} 8. d4 {[%emt 0:00:09]} Bb6 {[%emt 0:00:42]} 9. a4 {[%emt 0:08:28]} Bb7 {[%emt 0:01:06]} 10. d5 {[%emt 0:07:39]} Na5 {[%emt 0:08:12]} 11. Bc2 {[%emt 0:00:53]} h6 {[%emt 0:08:29]} 12. Nbd2 {[%emt 0:05:57]} c6 {[%emt 0:05:25]} 13. b4 {[%emt 0:03:58]} Nc4 {[%emt 0:00:26]} 14. Nxc4 {[%emt 0:01:01]} bxc4 {[%emt 0:00:05]} 15. a5 {[%emt 0:00:42]} Ba7 {[%emt 0:01:52]} 16. Ba4 {[%emt 0:00:32]} Rc8 {[%emt 0:01:07]} 17. Qe2 {[%emt 0:05:29]} O-O {[%emt 0:01:45]} 18. dxc6 {[%emt 0:01:48]} Bxc6 {[%emt 0:00:53]} 19. Bxc6 {[%emt 0:00:31]} Rxc6 {[%emt 0:00:05]} 20. Be3 {[%emt 0:05:29]} Bb8 {[%emt 0:03:23]} 21. Bb6 {[%emt 0:02:29]} Qc8 {[%emt 0:03:30]} 22. Nh4 {[%emt 0:07:03]} d5 {[%emt 0:04:25]} 23. Nf5 {[%emt 0:00:33]} Re8 {[%emt 0:02:41]} 24. f3 {[%emt 0:08:12]} Nh5 {[%emt 0:07:29]} 25. g3 {[%emt 0:01:53]} d4 {[%emt 0:08:18]} 26. Bc5 {[%emt 0:07:53]} Rxc5 {[%emt 0:16:01]} 27. bxc5 {[%emt 0:00:06]} Qxc5 {[%emt 0:00:18]} 28. Qf2 {[%emt 0:03:10]} Ba7 {[%emt 0:01:04]} 29. Rfd1 {[%emt 0:02:34]} Rd8 {[%emt 0:01:46]} 30. Kh1 {[%emt 0:03:15]} Kh7 {[%emt 0:04:18]} 31. Qa2 {[%emt 0:07:36]} Nf6 {[%emt 0:03:27]} 32. Qa3 {[%emt 0:00:47]} Qxa3 {[%emt 0:15:39]} 33. Rxa3 {[%emt 0:00:05]} Ne8 {[%emt 0:01:39]} 34. Ra4 {[%emt 0:02:34]} Rc8 {[%emt 0:00:57]} 35. cxd4 {[%emt 0:01:24]} exd4 {[%emt 0:00:39]} 36. Nxd4 {[%emt 0:00:35]} Nd6 {[%emt 0:00:18]} 37. Nc2 {[%emt 0:08:14]} Bc5 {[%emt 0:00:21]} 38. e5 {[%emt 0:01:40]} Nb7 {[%emt 0:00:42]} 39. Rd7 {[%emt 0:00:39]} Rd8 {[%emt 0:00:26]} 40. Rxd8 {[%emt 0:00:43]} Nxd8 {[%emt 0:00:03]} 41. Rxc4 {[%emt 0:30:44]} Nb7 {[%emt 0:30:59]} 42. f4 {[%emt 0:05:00]} Kg6 {[%emt 0:00:00]} 43. Kg2 {[%emt 0:00:00]} Kf5 {[%emt 0:00:00]} 44. Kf3 {[%emt 0:00:00]} g5 {[%emt 0:00:00]} 45. g4+ {[%emt 0:00:00]} Ke6 {[%emt 0:00:00]} 46. Nb4 {[%emt 0:00:00]} gxf4 {[%emt 0:00:00]} 47. Kxf4 {[%emt 0:00:00]} f6 {[%emt 0:00:00]} 48. exf6 {[%emt 0:00:00]} Bd6+ {[%emt 0:00:00]} 49. Kf3 {[%emt 0:00:00]} Nxa5 {[%emt 0:00:00]} 50. Re4+ {[%emt 0:00:00]} Kxf6 {[%emt 0:00:00]} 51. h4 {[%emt 0:00:00]} Nb3 {[%emt 0:00:00]} 52. Nd5+ {[%emt 0:00:00]} Kf7 {[%emt 0:00:00]} 53. Ra4 {[%emt 0:00:00]} a5 {[%emt 0:00:00]} 54. Nb6 {[%emt 0:00:00]} Bb4 {[%emt 0:00:00]} 55. Ra2 {[%emt 0:00:00]} Ke6 {[%emt 0:00:00]} 56. h5 {[%emt 0:00:00]} Ke5 {[%emt 0:00:00]} 57. Re2+ {[%emt 0:00:00]} Kd4 {[%emt 0:00:00]} 58. Re6 {[%emt 0:00:00]} Bd2 {[%emt 0:00:00]} 59. Rd6+ {[%emt 0:00:00]} Kc5 {[%emt 0:00:00]} 60. Rd3 {[%emt 0:00:04]} Kxb6 {[%emt 0:00:49]} 61. Rxb3+ {[%emt 0:00:18]} Kc5 {[%emt 0:00:21]} 62. Rb7 {[%emt 0:02:53]} Kc4 {[%emt 0:03:00]} 63. Ke4 {[%emt 0:01:47]} Bg5 {[%emt 0:01:21]} 64. Rc7+ {[%emt 0:01:58]} Kb5 {[%emt 0:01:27]} 65. Kd3 {[%emt 0:01:11]} Kb4 {[%emt 0:01:21]} 66. Kc2 {[%emt 0:00:42]} Bf4 {[%emt 0:01:41]} 67. Rf7 {[%emt 0:00:15]} Bg5 {[%emt 0:00:16]} 68. Kb1 {[%emt 0:00:14]} Be3 {[%emt 0:00:53]} 69. Rg7 {[%emt 0:00:25]} a4 {[%emt 0:02:34]} 70. Ka2 {[%emt 0:00:09]} Bd4 {[%emt 0:00:56]} 71. Rg6 {[%emt 0:00:30]} Be3 {[%emt 0:00:12]} 72. g5 {[%emt 0:00:28]} hxg5 {[%emt 0:00:28]} 73. h6 {[%emt 0:00:12]} 1-0

[Event "57th Biel Festival ATO 2024"]
[Site "Biel"]
[Date "2024.07.25"]
[Round "9.6"]
[White "Schmid, Nicola"]
[Black "Kalbermatter, Philipp"]
[Result "0-1"]
[ECO "D35"]
[WhiteElo "1888"]
[BlackElo "1912"]
[Annotator "RC"]
[PlyCount "102"]
[EventDate "2024.07.03"]
[EventType "swiss"]
[EventCountry "SUI"]
[SourceTitle "playchess.com"]
[Source "ChessBase"]
[SourceQuality "1"]
[TimeControl "40/5400+30:1800+30"]

1. d4 {[%emt 0:00:12]} d5 {[%emt 0:00:22]} 2. Nf3 {[%emt 0:00:06]} Bf5 {[%emt 0:01:00]} 3. c4 {[%emt 0:00:27]} e6 {[%emt 0:00:59]} 4. Nc3 {[%emt 0:00:08]} Nf6 {[%emt 0:09:23]} 5. cxd5 {[%emt 0:02:46]} exd5 {[%emt 0:00:54]} 6. Qb3 {[%emt 0:00:56]} Nc6 {[%emt 0:04:59]} 7. Bg5 {[%emt 0:04:06]} Be6 {[%emt 0:17:00]} 8. e3 {[%emt 0:05:36]} Be7 {[%emt 0:01:28]} 9. Rc1 {[%emt 0:05:45]} O-O {[%emt 0:01:52]} 10. Bd3 {[%emt 0:01:57]} Rb8 {[%emt 0:02:47]} 11. O-O {[%emt 0:08:27]} Ne4 {[%emt 0:08:57]} 12. Bf4 {[%emt 0:07:28]} Nxc3 {[%emt 0:04:11]} 13. Qxc3 {[%emt 0:02:44]} Rc8 {[%emt 0:04:43]} 14. Ne5 {[%emt 0:04:53]} Nxe5 {[%emt 0:01:18]} 15. dxe5 {[%emt 0:00:36]} c6 {[%emt 0:03:11]} 16. Bg3 {[%emt 0:06:24]} f6 {[%emt 0:04:23]} 17. Rfd1 {[%emt 0:06:46]} fxe5 {[%emt 0:00:31]} 18. Qxe5 {[%emt 0:01:43]} Qd7 {[%emt 0:04:36]} 19. Qh5 {[%emt 0:00:54]} Bf5 {[%emt 0:00:38]} 20. Bxf5 {[%emt 0:03:02]} Qxf5 {[%emt 0:00:50]} 21. Qxf5 {[%emt 0:01:03]} Rxf5 {[%emt 0:00:11]} 22. e4 {[%emt 0:00:23]} dxe4 {[%emt 0:01:19]} 23. Rd7 {[%emt 0:00:21]} Bg5 {[%emt 0:00:39]} 24. Re1 {[%emt 0:00:29]} Rf7 {[%emt 0:03:17]} 25. Rxf7 {[%emt 0:01:35]} Kxf7 {[%emt 0:00:04]} 26. Rxe4 {[%emt 0:00:10]} Rd8 {[%emt 0:01:23]} 27. h4 {[%emt 0:01:44]} Bf6 {[%emt 0:00:30]} 28. b3 {[%emt 0:04:29]} Rd2 {[%emt 0:01:21]} 29. a4 {[%emt 0:01:30]} Rd3 {[%emt 0:01:17]} 30. Rb4 {[%emt 0:04:59]} b6 {[%emt 0:02:10]} 31. Bb8 {[%emt 0:03:11]} c5 {[%emt 0:01:05]} 32. Rc4 {[%emt 0:02:06]} Rxb3 {[%emt 0:00:44]} 33. a5 {[%emt 0:09:15]} Rb1+ {[%emt 0:03:34]} 34. Kh2 {[%emt 0:00:16]} Rb4 {[%emt 0:00:16]} 35. Rc2 {[%emt 0:01:01]} Rxh4+ {[%emt 0:00:57]} 36. Kg3 {[%emt 0:00:30]} Ra4 {[%emt 0:05:17]} 37. Bxa7 {[%emt 0:00:34]} bxa5 {[%emt 0:01:03]} 38. Bxc5 {[%emt 0:03:51]} Ra1 {[%emt 0:03:16]} 39. Kf3 {[%emt 0:01:19]} a4 {[%emt 0:00:59]} 40. Ke4 {[%emt 0:05:45]} Ke6 {[%emt 0:01:28]} 41. Bb4 {[%emt 0:31:02]} a3 {[%emt 0:35:26]} 42. f4 {[%emt 0:00:00]} Kd7 {[%emt 0:00:00]} 43. g4 {[%emt 0:00:00]} Bb2 {[%emt 0:00:00]} 44. Rd2+ {[%emt 0:00:00]} Kc6 {[%emt 0:00:00]} 45. Kd3 {[%emt 0:00:00]} Kb5 {[%emt 0:00:00]} 46. Bc3 {[%emt 0:00:00]} Rb1 {[%emt 0:00:00]} 47. Re2 {[%emt 0:00:00]} Rd1+ {[%emt 0:00:00]} 48. Rd2 {[%emt 0:00:00]} Rxd2+ {[%emt 0:00:00]} 49. Kxd2 {[%emt 0:00:00]} Kc4 {[%emt 0:00:00]} 50. Bxb2 {[%emt 0:00:00]} axb2 {[%emt 0:00:00]} 51. Kc2 {[%emt 0:00:24]} Kd4 {[%emt 0:00:00]} 0-1

[Event "57th Biel Festival ATO 2024"]
[Site "Biel"]
[Date "2024.07.25"]
[Round "9.7"]
[White "King, Alexander"]
[Black "Papaux, Jeremie"]
[Result "1-0"]
[ECO "D36"]
[WhiteElo "1935"]
[BlackElo "1814"]
[Annotator "RC"]
[PlyCount "95"]
[EventDate "2024.07.03"]
[EventType "swiss"]
[EventCountry "SUI"]
[SourceTitle "playchess.com"]
[Source "ChessBase"]
[SourceQuality "1"]
[TimeControl "40/5400+30:1800+30"]

1. d4 {[%emt 0:00:04]} Nf6 {[%emt 0:00:09]} 2. c4 {[%emt 0:00:11]} e6 {[%emt 0:00:08]} 3. Nc3 {[%emt 0:00:03]} d5 {[%emt 0:01:35]} 4. cxd5 {[%emt 0:00:18]} exd5 {[%emt 0:00:08]} 5. Bg5 {[%emt 0:00:05]} Be7 {[%emt 0:00:13]} 6. e3 {[%emt 0:01:11]} O-O {[%emt 0:00:20]} 7. Bd3 {[%emt 0:00:12]} c6 {[%emt 0:01:31]} 8. Qc2 {[%emt 0:00:39]} Nbd7 {[%emt 0:00:27]} 9. Nf3 {[%emt 0:05:21]} Re8 {[%emt 0:04:14]} 10. O-O {[%emt 0:03:57]} g6 {[%emt 0:01:09]} 11. Rab1 {[%emt 0:02:21]} a5 {[%emt 0:00:19]} 12. a3 {[%emt 0:00:30]} Nf8 {[%emt 0:01:07]} 13. b4 {[%emt 0:03:04]} axb4 {[%emt 0:00:07]} 14. axb4 {[%emt 0:00:03]} Ne6 {[%emt 0:00:12]} 15. Bh4 {[%emt 0:02:14]} Ng7 {[%emt 0:02:15]} 16. b5 {[%emt 0:12:39]} Bf5 {[%emt 0:08:19]} 17. Bxf5 {[%emt 0:08:50]} Nxf5 {[%emt 0:00:10]} 18. Bxf6 {[%emt 0:03:57]} Bxf6 {[%emt 0:00:39]} 19. bxc6 {[%emt 0:01:12]} bxc6 {[%emt 0:00:11]} 20. Na4 {[%emt 0:00:32]} Qc7 {[%emt 0:15:26]} 21. Rfc1 {[%emt 0:06:23]} Ra6 {[%emt 0:02:12]} 22. Nc5 {[%emt 0:03:58]} Ra7 {[%emt 0:01:40]} 23. Nd3 {[%emt 0:03:07]} Rc8 {[%emt 0:06:41]} 24. Rb3 {[%emt 0:03:31]} Ne7 {[%emt 0:03:34]} 25. Rc3 {[%emt 0:03:48]} Qd6 {[%emt 0:03:47]} 26. g3 {[%emt 0:02:25]} Bg7 {[%emt 0:04:47]} 27. Rc5 {[%emt 0:02:23]} Kf8 {[%emt 0:03:48]} 28. Nb4 {[%emt 0:05:04]} Rac7 {[%emt 0:00:54]} 29. Nd2 {[%emt 0:01:11]} Ke8 {[%emt 0:01:50]} 30. Nb3 {[%emt 0:01:57]} Kd7 {[%emt 0:01:38]} 31. Na5 {[%emt 0:03:53]} Qe6 {[%emt 0:02:58]} 32. Na6 {[%emt 0:05:33]} Ra7 {[%emt 0:00:38]} 33. Nxc6 {[%emt 0:03:07]} Rxa6 {[%emt 0:04:39]} 34. Nxe7 {[%emt 0:00:29]} Rxc5 {[%emt 0:02:13]} 35. Qxc5 {[%emt 0:00:03]} Qd6 {[%emt 0:01:41]} 36. Nxd5 {[%emt 0:02:03]} Qxc5 {[%emt 0:01:38]} 37. Rxc5 {[%emt 0:01:06]} Bf8 {[%emt 0:00:46]} 38. Rc7+ {[%emt 0:02:39]} Ke6 {[%emt 0:00:12]} 39. Nf4+ {[%emt 0:00:45]} Kf6 {[%emt 0:00:06]} 40. Nd3 {[%emt 0:05:59]} Bd6 {[%emt 0:00:40]} 41. Rc2 {[%emt 0:31:00]} Kg5 {[%emt 0:30:31]} 42. Kg2 {[%emt 0:01:08]} f5 {[%emt 0:00:26]} 43. Nc5 {[%emt 0:00:51]} Ra3 {[%emt 0:00:27]} 44. Kf3 {[%emt 0:01:32]} h5 {[%emt 0:00:29]} 45. h4+ {[%emt 0:00:00]} Kh6 {[%emt 0:00:00]} 46. Ne6 {[%emt 0:00:00]} Be7 {[%emt 0:00:00]} 47. Rc7 {[%emt 0:00:00]} Bf6 {[%emt 0:00:00]} 48. Rf7 {[%emt 0:00:00]} 1-0

[Event "57th Biel Festival ATO 2024"]
[Site "Biel"]
[Date "2024.07.25"]
[Round "9.8"]
[White "Schneuwly, Achim"]
[Black "Akhmediyar, Yernur"]
[Result "1/2-1/2"]
[ECO "D05"]
[WhiteElo "1933"]
[BlackElo "1751"]
[Annotator "ChessBase"]
[PlyCount "243"]
[EventDate "2024.07.03"]
[EventType "swiss"]
[EventCountry "SUI"]
[SourceTitle "playchess.com"]
[Source "ChessBase"]
[SourceQuality "1"]
[TimeControl "40/5400+30:1800+30"]

1. d4 {[%emt 0:00:04]} Nf6 {[%emt 0:02:00]} 2. Nf3 {[%emt 0:00:05]} e6 {[%emt 0:00:24]} 3. Nbd2 {[%emt 0:00:30]} d5 {[%emt 0:00:55]} 4. e3 {[%emt 0:00:08]} c5 {[%emt 0:01:23]} 5. c3 {[%emt 0:00:06]} Nc6 {[%emt 0:00:58]} 6. Bd3 {[%emt 0:00:13]} Bd6 {[%emt 0:03:00]} 7. O-O {[%emt 0:00:08]} O-O {[%emt 0:00:51]} 8. Qe2 {[%emt 0:00:18]} Re8 {[%emt 0:08:26]} 9. dxc5 {[%emt 0:01:06]} Bxc5 {[%emt 0:03:43]} 10. e4 {[%emt 0:00:18]} e5 {[%emt 0:04:38]} 11. exd5 {[%emt 0:05:02]} Nxd5 {[%emt 0:08:15]} 12. Ne4 {[%emt 0:01:12]} Bf8 {[%emt 0:02:31]} 13. Rd1 {[%emt 0:05:38]} Qc7 {[%emt 0:14:09]} 14. Neg5 {[%emt 0:05:08]} Nf6 {[%emt 0:03:26]} 15. Bc4 {[%emt 0:00:54]} Re7 {[%emt 0:00:48]} 16. h3 {[%emt 0:03:30]} e4 {[%emt 0:09:55]} 17. Nd4 {[%emt 0:29:39]} Na5 {[%emt 0:09:57]} 18. Bxf7+ {[%emt 0:04:41]} Rxf7 {[%emt 0:00:09]} 19. Nxf7 {[%emt 0:00:16]} Qxf7 {[%emt 0:00:58]} 20. Bg5 {[%emt 0:06:17]} Qg6 {[%emt 0:07:27]} 21. Qb5 {[%emt 0:05:09]} e3 {[%emt 0:09:59]} 22. Bxf6 {[%emt 0:11:43]} exf2+ {[%emt 0:01:43]} 23. Kxf2 {[%emt 0:00:09]} Qxf6+ {[%emt 0:00:13]} 24. Kg1 {[%emt 0:00:15]} Nc6 {[%emt 0:02:06]} 25. Qc4+ {[%emt 0:04:16]} Qf7 {[%emt 0:00:44]} 26. Qxf7+ {[%emt 0:00:13]} Kxf7 {[%emt 0:00:06]} 27. Rf1+ {[%emt 0:00:05]} Kg8 {[%emt 0:00:15]} 28. Nb5 {[%emt 0:02:58]} b6 {[%emt 0:02:34]} 29. Rad1 {[%emt 0:03:05]} a6 {[%emt 0:01:16]} 30. Nd6 {[%emt 0:01:32]} Be6 {[%emt 0:00:19]} 31. b3 {[%emt 0:02:11]} Rd8 {[%emt 0:01:10]} 32. Ne4 {[%emt 0:00:57]} Rc8 {[%emt 0:00:53]} 33. Ng5 {[%emt 0:01:03]} Re8 {[%emt 0:01:09]} 34. Rxf8+ {[%emt 0:04:48]} Kxf8 {[%emt 0:00:36]} 35. Rd6 {[%emt 0:00:06]} Bf5 {[%emt 0:00:32]} 36. Rxc6 {[%emt 0:00:07]} h6 {[%emt 0:00:30]} 37. Nf3 {[%emt 0:00:18]} Re6 {[%emt 0:00:28]} 38. Rxe6 {[%emt 0:00:11]} Bxe6 {[%emt 0:00:03]} 39. Kf2 {[%emt 0:00:11]} Ke7 {[%emt 0:00:08]} 40. Ke3 {[%emt 0:00:09]} Kd6 {[%emt 0:00:07]} 41. Kd4 {[%emt 0:30:26]} g5 {[%emt 0:31:24]} 42. c4 {[%emt 0:00:42]} Bc8 {[%emt 0:00:00]} 43. b4 {[%emt 0:00:00]} Bb7 {[%emt 0:00:00]} 44. a3 {[%emt 0:00:00]} Bc6 {[%emt 0:00:00]} 45. Ne1 {[%emt 0:00:00]} h5 {[%emt 0:00:00]} 46. g3 {[%emt 0:00:00]} h4 {[%emt 0:00:00]} 47. gxh4 {[%emt 0:00:00]} gxh4 {[%emt 0:00:00]} 48. Nd3 {[%emt 0:00:00]} Bd7 {[%emt 0:00:00]} 49. Nf4 {[%emt 0:00:00]} a5 {[%emt 0:00:00]} 50. Ke4 {[%emt 0:00:00]} axb4 {[%emt 0:00:00]} 51. axb4 {[%emt 0:00:00]} Bc8 {[%emt 0:00:00]} 52. Kd4 {[%emt 0:00:00]} Bd7 {[%emt 0:00:00]} 53. Ke4 {[%emt 0:00:00]} Bc8 {[%emt 0:00:00]} 54. Kd4 {[%emt 0:00:00]} Bd7 {[%emt 0:00:00]} 55. Ng6 {[%emt 0:00:00]} Bxh3 {[%emt 0:00:00]} 56. Nxh4 {[%emt 0:00:00]} Bg4 {[%emt 0:00:28]} 57. Ng6 {[%emt 0:00:00]} Bf3 {[%emt 0:00:28]} 58. Ne5 {[%emt 0:00:00]} Bg2 {[%emt 0:00:25]} 59. Nf7+ {[%emt 0:00:00]} Kc7 {[%emt 0:00:17]} 60. Ke5 {[%emt 0:00:00]} Bf3 {[%emt 0:00:45]} 61. Nd6 {[%emt 0:00:00]} Bg2 {[%emt 0:00:29]} 62. Nb5+ {[%emt 0:00:00]} Kc6 {[%emt 0:00:13]} 63. Nc3 {[%emt 0:00:00]} Bf1 {[%emt 0:00:29]} 64. Kd4 {[%emt 0:00:00]} Bg2 {[%emt 0:00:11]} 65. Ne2 {[%emt 0:00:00]} Kc7 {[%emt 0:00:24]} 66. Nf4 {[%emt 0:00:12]} Bf3 {[%emt 0:00:24]} 67. Ke5 {[%emt 0:00:45]} Kc6 {[%emt 0:00:16]} 68. Ne6 {[%emt 0:00:17]} Bg2 {[%emt 0:00:13]} 69. Nd4+ {[%emt 0:01:18]} Kc7 {[%emt 0:00:12]} 70. Ne6+ {[%emt 0:02:24]} Kc6 {[%emt 0:00:09]} 71. Nf4 {[%emt 0:00:07]} Bf3 {[%emt 0:00:19]} 72. Kd4 {[%emt 0:02:24]} Kc7 {[%emt 0:00:19]} 73. Nd3 {[%emt 0:00:31]} Bg2 {[%emt 0:00:12]} 74. Ke5 {[%emt 0:00:55]} Kc6 {[%emt 0:00:21]} 75. b5+ {[%emt 0:00:08]} Kc7 {[%emt 0:00:20]} 76. Nf4 {[%emt 0:00:20]} Bf1 {[%emt 0:00:11]} 77. Kd5 {[%emt 0:00:22]} Kd7 {[%emt 0:00:45]} 78. Ng6 {[%emt 0:00:31]} Bg2+ {[%emt 0:00:14]} 79. Ke5 {[%emt 0:00:29]} Bf3 {[%emt 0:01:11]} 80. Nf8+ {[%emt 0:00:58]} Kc7 {[%emt 0:00:26]} 81. Ne6+ {[%emt 0:00:35]} Kb7 {[%emt 0:00:22]} 82. Nf4 {[%emt 0:00:58]} Kc7 {[%emt 0:01:08]} 83. Nd5+ {[%emt 0:00:09]} Kb7 {[%emt 0:00:14]} 84. Kd6 {[%emt 0:00:25]} Be2 {[%emt 0:00:40]} 85. Ne3 {[%emt 0:00:07]} Bd3 {[%emt 0:00:40]} 86. Kd7 {[%emt 0:00:16]} Be2 {[%emt 0:00:21]} 87. Kd8 {[%emt 0:00:33]} Bd3 {[%emt 0:00:20]} 88. Kd7 {[%emt 0:00:14]} Be2 {[%emt 0:00:10]} 89. Kd8 {[%emt 0:02:32]} Bd3 {[%emt 0:00:08]} 90. Ke7 {[%emt 0:00:07]} Kc7 {[%emt 0:00:52]} 91. Ke6 {[%emt 0:00:42]} Be2 {[%emt 0:00:16]} 92. Nd5+ {[%emt 0:00:34]} Kb7 {[%emt 0:00:15]} 93. Ne3 {[%emt 0:00:20]} Kc7 {[%emt 0:00:17]} 94. Ke7 {[%emt 0:00:07]} Bd3 {[%emt 0:00:11]} 95. Ke6 {[%emt 0:00:15]} Be2 {[%emt 0:00:17]} 96. Kd5 {[%emt 0:01:10]} Bd3 {[%emt 0:00:19]} 97. Ng4 {[%emt 0:00:07]} Be2 {[%emt 0:00:14]} 98. Ne5 {[%emt 0:00:08]} Bf1 {[%emt 0:00:29]} 99. Ng6 {[%emt 0:00:42]} Bg2+ {[%emt 0:00:18]} 100. Ke6 {[%emt 0:00:22]} Bf1 {[%emt 0:00:20]} 101. Kd5 {[%emt 0:00:31]} Be2 {[%emt 0:00:11]} 102. Nf4 {[%emt 0:00:16]} Bf3+ {[%emt 0:00:12]} 103. Ke6 {[%emt 0:00:24]} Bg4+ {[%emt 0:00:14]} 104. Ke7 {[%emt 0:00:09]} Bf3 {[%emt 0:00:18]} 105. Nd5+ {[%emt 0:00:27]} Kb7 {[%emt 0:00:15]} 106. Nf6 {[%emt 0:01:01]} Be2 {[%emt 0:00:21]} 107. Ne8 {[%emt 0:00:22]} Bd3 {[%emt 0:00:18]} 108. Kd8 {[%emt 0:00:17]} Be2 {[%emt 0:01:50]} 109. Nd6+ {[%emt 0:00:10]} Kb8 {[%emt 0:00:32]} 110. Kd7 {[%emt 0:00:11]} Bf3 {[%emt 0:00:19]} 111. Ne8 {[%emt 0:01:08]} Be2 {[%emt 0:00:55]} 112. Nd6 {[%emt 0:00:07]} Bf3 {[%emt 0:00:11]} 113. Nf7 {[%emt 0:00:19]} Be2 {[%emt 0:00:36]} 114. Ne5 {[%emt 0:00:23]} Kb7 {[%emt 0:00:38]} 115. Nf7 {[%emt 0:00:49]} Bf3 {[%emt 0:00:44]} 116. Nd8+ {[%emt 0:00:37]} Kb8 {[%emt 0:03:10]} 117. Nc6+ {[%emt 0:02:24]} Kb7 {[%emt 0:00:13]} 118. Ne5 {[%emt 0:02:05]} Be2 {[%emt 0:00:12]} 119. Kd6 {[%emt 0:00:38]} Bf1 {[%emt 0:00:20]} 120. Kd7 {[%emt 0:00:50]} Be2 {[%emt 0:00:13]} 121. Kd6 {[%emt 0:00:13]} Bf1 {[%emt 0:00:11]} 122. Kd7 {[%emt 0:00:09]} 1/2-1/2

[Event "57th Biel Festival ATO 2024"]
[Site "Biel"]
[Date "2024.07.25"]
[Round "9.9"]
[White "Kim, Yejun"]
[Black "Meshach, Felix"]
[Result "0-1"]
[ECO "B38"]
[WhiteElo "1642"]
[BlackElo "1773"]
[Annotator "NA RC"]
[PlyCount "110"]
[EventDate "2024.07.03"]
[EventType "swiss"]
[EventCountry "SUI"]
[SourceTitle "playchess.com"]
[Source "ChessBase"]
[SourceQuality "1"]
[TimeControl "40/5400+30:1800+30"]

1. e4 {[%emt 0:00:05]} c5 {[%emt 0:00:07]} 2. Nf3 {[%emt 0:00:11]} Nc6 {[%emt 0:00:15]} 3. d4 {[%emt 0:00:08]} cxd4 {[%emt 0:00:11]} 4. Nxd4 {[%emt 0:00:05]} g6 {[%emt 0:02:50]} 5. c4 {[%emt 0:00:26]} Bg7 {[%emt 0:00:12]} 6. Be3 {[%emt 0:00:07]} Nf6 {[%emt 0:01:55]} 7. Nc3 {[%emt 0:00:08]} d6 {[%emt 0:00:35]} 8. Be2 {[%emt 0:00:06]} O-O {[%emt 0:02:50]} 9. O-O {[%emt 0:03:12]} Nd7 {[%emt 0:06:24]} 10. h3 {[%emt 0:04:12]} Nxd4 {[%emt 0:02:57]} 11. Bxd4 {[%emt 0:00:09]} b6 {[%emt 0:00:14]} 12. Bxg7 {[%emt 0:04:27]} Kxg7 {[%emt 0:00:12]} 13. Qd4+ {[%emt 0:00:07]} Kg8 {[%emt 0:01:01]} 14. b4 {[%emt 0:06:11]} Ba6 {[%emt 0:01:40]} 15. f4 {[%emt 0:04:00]} Rc8 {[%emt 0:01:07]} 16. Rad1 {[%emt 0:00:46]} Nb8 {[%emt 0:01:32]} 17. b5 {[%emt 0:01:31]} Bb7 {[%emt 0:00:18]} 18. Bg4 {[%emt 0:00:59]} e6 {[%emt 0:10:26]} 19. f5 {[%emt 0:05:20]} e5 {[%emt 0:05:56]} 20. Qe3 {[%emt 0:02:13]} Rxc4 {[%emt 0:02:02]} 21. f6 {[%emt 0:00:09]} Kh8 {[%emt 0:00:24]} 22. Qh6 {[%emt 0:06:25]} Rg8 {[%emt 0:01:51]} 23. Rf5 {[%emt 0:05:10]} Rxc3 {[%emt 0:05:04]} 24. Rh5 {[%emt 0:00:10]} gxh5 {[%emt 0:00:36]} 25. Bf5 {[%emt 0:00:08]} Rxg2+ {[%emt 0:01:14]} 26. Kxg2 {[%emt 0:03:02]} Qg8+ {[%emt 0:00:29]} 27. Qg7+ {[%emt 0:03:07]} Qxg7+ {[%emt 0:00:09]} 28. fxg7+ {[%emt 0:00:04]} Kxg7 {[%emt 0:00:08]} 29. Rxd6 {[%emt 0:00:04]} Bc8 {[%emt 0:01:52]} 30. Rd8 {[%emt 0:00:06]} Bxf5 {[%emt 0:01:16]} 31. exf5 {[%emt 0:00:06]} Nc6 {[%emt 0:00:46]} 32. bxc6 {[%emt 0:00:13]} Rxc6 {[%emt 0:00:16]} 33. Re8 {[%emt 0:00:38]} Rc2+ {[%emt 0:01:30]} 34. Kf3 {[%emt 0:00:24]} Rxa2 {[%emt 0:00:09]} 35. Rxe5 {[%emt 0:00:07]} Ra5 {[%emt 0:00:30]} 36. Re3 {[%emt 0:00:55]} Rxf5+ {[%emt 0:00:17]} 37. Ke4 {[%emt 0:00:05]} Rf6 {[%emt 0:00:42]} 38. Ra3 {[%emt 0:00:15]} a5 {[%emt 0:00:12]} 39. Ke5 {[%emt 0:00:15]} Re6+ {[%emt 0:02:59]} 40. Kf5 {[%emt 0:00:55]} h6 {[%emt 0:00:27]} 41. Rg3+ {[%emt 0:30:49]} Rg6 {[%emt 0:30:08]} 42. Rd3 {[%emt 0:00:04]} Rg5+ {[%emt 0:00:24]} 43. Ke4 {[%emt 0:00:27]} Rb5 {[%emt 0:00:20]} 44. Kd4 {[%emt 0:00:43]} Rb4+ {[%emt 0:03:48]} 45. Kc3 {[%emt 0:00:05]} f5 {[%emt 0:00:41]} 46. Rd5 {[%emt 0:00:57]} Kf6 {[%emt 0:01:00]} 47. Rd8 {[%emt 0:00:05]} Kg5 {[%emt 0:00:33]} 48. Rd5 {[%emt 0:00:52]} Kf4 {[%emt 0:00:20]} 49. Rd6 {[%emt 0:00:30]} Kg3 {[%emt 0:00:40]} 50. Rd3+ {[%emt 0:01:29]} Kg2 {[%emt 0:00:41]} 51. Rd5 {[%emt 0:03:28]} f4 {[%emt 0:00:57]} 52. Rxh5 {[%emt 0:00:06]} f3 {[%emt 0:00:07]} 53. Rxh6 {[%emt 0:00:04]} f2 {[%emt 0:00:18]} 54. Rg6+ {[%emt 0:00:04]} Kxh3 {[%emt 0:00:10]} 55. Rf6 {[%emt 0:00:58]} Kg2 {[%emt 0:00:07]} 0-1